Cogmind - Beta 16 --- EXPLORER MODE // 2026.01.15 @ 12:32:19 Player: K.K.Y. Result: Destroyed by G-50 Soldier with Heavy Laser Performance ------------- Evolutions (4) 2000 Regions Visited (10) 2000 Robots Destroyed (165) 825 Value Destroyed (6784) 6784 Prototype IDs (49) 980 Alien Tech Used (0) 0 Bonus (3541) 3541 TOTAL SCORE: 16130 Bonus ------- Follower Combat Kills 1554 Delivered SUBCON Basin 2000 Met Data Miner 300 Friendly Fire -313 Cogmind --------- Core Integrity 0/850 Matter 290/300 Energy 120/150 System Corruption 4% Temperature Cool (80) Movement Core (1000) Ox19 Location -5/Proximity Caves Parts ------- > --- POWER (2) -------- Micro Fission Core > --- PROPULSION (4) --- (None) > --- UTILITY (8) ------ Cryofiber Web Improved Cooling System High-capacity Storage Unit 0b10 Decoder Chip [Generic] System Shield Improved System Shield > --- WEAPON (2) ------- Beamcaster Beamcaster > --- INVENTORY (20) --- Humpback Advanced Sensor Array Advanced Signal Interpreter IFF Parser Advanced Terrain Scanner Advanced Terrain Scan Processor Faulty Experimental Targeting Computer Advanced ECM Suite Cloaking Device Hacking Suite Tech Extrapolator Dynamic Insulation System Beamcaster Mining Laser Improved Plasma Cutter Multitool Shock Maul Peak State ------------ > --- POWER ------------ Cold Fusion Reactor Cold Fusion Reactor > --- PROPULSION ------- Heavy Siege Treads Heavy Siege Treads > --- UTILITY ---------- Cryofiber Web Advanced Heat Sink Improved Cooling System High-capacity Storage Unit EM Shield System Shield Improved System Shield Improved System Shield > --- WEAPON ----------- Force Rifle Antimatter Cannon > --- INVENTORY -------- Advanced Heat Sink Humpback Advanced Sensor Array Advanced Signal Interpreter IFF Parser Advanced Terrain Scanner Advanced Terrain Scan Processor Experimental Targeting Computer Advanced ECM Suite Cloaking Device Hardened Medium Armor Plating Hacking Suite Tech Extrapolator Dynamic Insulation System Force Rifle KE Penetrator Mining Laser Multitool Shock Maul [Rating: 91] Favorites ----------- Power Light Nuclear Core Engine Angular Momentum Engine Power Core Light Nuclear Core Reactor Cold Fusion Reactor Propulsion Medium Treads Treads Medium Treads Utility Cryofiber Web Device Cryofiber Web Storage High-capacity Storage Unit Processor System Guard Hackware Improved System Shield Protection Improved Medium Armor Plating Weapon Force Rifle Energy Gun Force Rifle Energy Cannon Powered Cannon Ballistic Gun Assault Rifle Ballistic Cannon Antimatter Cannon Special Weapon Mining Laser Impact Weapon Shock Maul Build | -11 -10 -10 -10 -8 -8 -6 -6 -6 -6 -5 ------- Run | Yrd Mat Min Sub Rec Scr Fac Low Low Dat Pro Slots Evolved 9 | . 1 . . . . 8 . . . . Power 1 | . . . . . . 1 . . . . Propulsion 2 | . . . . . . 2 . . . . Utility 6 | . 1 . . . . 5 . . . . Weapon . | . . . . . . . . . . . Parts Attached 108 | 7 4 2 16 7 3 57 3 6 . 3 Power 19 | 1 . 1 2 1 1 12 . . . 1 Engine 11 | 1 . . 1 . 1 8 . . . . Core 5 | . . 1 1 1 . 1 . . . 1 Reactor 3 | . . . . . . 3 . . . . Propulsion 20 | 2 . . 3 3 2 10 . . . . Treads 20 | 2 . . 3 3 2 10 . . . . Leg . | . . . . . . . . . . . Wheel . | . . . . . . . . . . . Hover . | . . . . . . . . . . . Flight . | . . . . . . . . . . . Utility 41 | 2 2 1 5 3 . 22 3 3 . . Device 22 | . 2 . 4 1 . 12 1 2 . . Storage 4 | 1 . 1 1 1 . . . . . . Processor 2 | . . . . . . 1 . 1 . . Hackware 7 | . . . . . . 7 . . . . Protection 6 | 1 . . . 1 . 2 2 . . . Artifact . | . . . . . . . . . . . Weapon 28 | 2 2 . 6 . . 13 . 3 . 2 Energy Gun 9 | . . . . . . 6 . 1 . 2 Energy Cannon 4 | . . . 1 . . 2 . 1 . . Ballistic Gun 8 | 2 1 . 3 . . 2 . . . . Ballistic Cannon 4 | . . . 2 . . 2 . . . . Launcher . | . . . . . . . . . . . Special Weapon 2 | . 1 . . . . . . 1 . . Impact Weapon 1 | . . . . . . 1 . . . . Slashing Weapon . | . . . . . . . . . . . Piercing Weapon . | . . . . . . . . . . . Special Melee Weapon . | . . . . . . . . . . . Unidentified Prototypes 8 | . . . . . . 8 . . . . Parts Lost 31 | . . . 3 . . 19 1 1 . 7 Power 6 | . . . 1 . . 4 . . . 1 Propulsion 8 | . . . 1 . . 5 . . . 2 Utility 12 | . . . 1 . . 9 . . . 2 Weapon 5 | . . . . . . 1 1 1 . 2 Highest Loss Streak 7 | . . . 2 . . 6 1 1 . 7 To Critical Strikes 1 | . . . 1 . . . . . . . Average Backups 16 | 2 6 11 14 16 18 18 18 18 19 18 Power . | . 1 1 1 . . . . . . . Propulsion . | . . 1 . . . . . . . . Utility 11 | . 2 5 7 11 14 13 13 13 12 12 Weapon 3 | 1 2 3 4 3 2 4 3 3 5 4 Tool/Special . | . . . . . . . . . . . Unused Backups 41 | 1 . . 5 4 4 11 1 1 . 14 Power 4 | . . . 2 . . 1 1 . . . Propulsion 1 | . . . 1 . . . . . . . Utility 21 | . . . 1 . 2 7 . . . 11 Weapon 13 | 1 . . 1 4 2 3 . 1 . 1 Tool/Special 2 | . . . . . . . . . . 2 Average Slot Usage (%) 81 | . 94 100 66 81 88 86 86 86 87 80 Engine 3 | . 11 3 1 . 9 6 . . . . Core 6 | . . 8 7 19 12 1 . . . 4 Reactor 2 | . . . . . . 3 12 12 12 7 Treads 16 | . 24 25 15 21 22 15 12 12 12 8 Device 18 | . 19 25 11 16 22 21 25 19 18 16 Storage 8 | . 12 12 11 11 11 5 6 6 6 6 Processor 1 | . . . . . . 2 . 4 6 6 Hackware 7 | . . . . . . 16 12 12 12 12 Protection 1 | . 2 . . 1 . . 5 6 6 4 Energy Gun 2 | . . . . . . 5 6 6 6 7 Energy Cannon 4 | . . . 5 11 11 2 . 1 6 4 Ballistic Gun 4 | . 24 25 8 . . . 5 3 . . Ballistic Cannon 2 | . . . 3 . . 3 . . . . Peak Build Rating 91 | 7 10 14 42 46 41 91 90 90 89 89 Average Rating 50 | 5 9 12 24 37 40 69 89 89 89 79 On Entrance 46 | . 7 10 14 42 38 41 86 90 89 89 Avg Prop Armor Cover (%) . | . . . . . . . . . . . Naked Turns . | . . . . . . . . . . . Heaviest Build 214 | 22 22 31 214 214 69 85 90 88 88 88 Greatest Support 140 | 40 40 40 40 40 44 140 140 140 140 140 Greatest Overweight (x) 10 | 2 6 . 10 10 1 3 . . . . Average Overweight (x) . | . . . 1 1 1 . . . . . Largest Inventory Capacity 35 | 10 10 15 35 35 20 35 20 20 20 20 Average Capacity 20 | 8 10 12 21 20 20 20 20 20 20 20 Most Carried 33 | 5 10 14 32 33 20 20 20 20 20 20 Average Carried 19 | 3 6 11 19 20 19 19 19 19 20 19 Final Capacity 35 | 10 10 15 35 20 20 20 20 20 20 20 Final Carried 31 | 4 9 14 31 20 20 20 20 20 20 18 Class Distribution -------------------- 53% | Hacker-Mutant 31% | Commander-Mutant 11% | Hauler-Mutant 4% | Wizard-Mutant Dominant Class ---------------- Hacker-Mutant | -10/Materials Hacker-Mutant | -10/Mines Hacker-Mutant | -10/Subcaves Commander-Mutant | -8/Recycling Commander-Mutant | -8/Scraptown Hacker-Mutant | -6/Factory Commander-Mutant | -6/Lower Caves Commander-Mutant | -6/Lower Caves Hacker-Mutant | -6/Data Miner Hacker-Mutant | -5/Proximity Caves Resources | -11 -10 -10 -10 -8 -8 -6 -6 -6 -6 -5 ----------- Run | Yrd Mat Min Sub Rec Scr Fac Low Low Dat Pro Matter Collected 3409 | 325 180 180 868 140 10 1342 175 169 . 20 Remotely . | . . . . . . . . . . . Salvage Created 8091 | 151 225 80 810 547 . 5041 213 538 . 486 Parts 378 | 15 13 2 46 23 . 223 8 21 . 27 Haulers Intercepted 7 | . 1 . . . . 6 . . . . Recyclers Shooed . | . . . . . . . . . . . Parts Field Recycled . | . . . . . . . . . . . Retrieved Matter . | . . . . . . . . . . . Parts Self-Destructed . | . . . . . . . . . . . Prevented . | . . . . . . . . . . . Parts Restored . | . . . . . . . . . . . Kills | -11 -10 -10 -10 -8 -8 -6 -6 -6 -6 -5 ------- Run | Yrd Mat Min Sub Rec Scr Fac Low Low Dat Pro Combat Hostiles Destroyed 124 | . 6 2 15 5 . 77 3 7 . 9 Guns 66 | . 6 2 7 . . 34 2 7 . 8 Cannons 50 | . . . 7 5 . 37 1 . . . Classes Destroyed 21 | 2 4 . 4 4 . 5 . 2 . . Worker 4 | . . . . . . 4 . . . . Tunneler 5 | 4 . . . . . 1 . . . . Hauler 7 | . 1 . . . . 6 . . . . Recycler 2 | 1 . . . . . 1 . . . . Mechanic 1 | . . . . . . 1 . . . . Operator 5 | . . . . . . 5 . . . . Turret 2 | . . . 2 . . . . . . . Watcher 11 | . 3 . . . . 8 . . . . Swarmer 14 | . 5 . 1 . . 4 1 . . 3 Grunt 48 | . 1 2 . . . 38 2 2 . 3 Brawler 4 | . . . . 1 . 3 . . . . Protector 1 | . . . . 1 . . . . . . Sentry 14 | . . . . 2 . 10 1 . . 1 Demolisher 1 | . . . . 1 . . . . . . Hunter 6 | . . . . . . 6 . . . . Programmer 18 | . . . . . . 16 . . . 2 Artisan 1 | . . . 1 . . . . . . . Subdweller 14 | . . . 14 . . . . . . . Zionite 2 | . . . 2 . . . . . . . Thug 2 | . . . . . . . . 2 . . Butcher 3 | . . . . . . . . 3 . . Mutant 1 | . . . . . . . . 1 . . Best Kill Streak 8 | 2 2 1 3 3 . 5 1 3 . 8 Combat Bots Only 8 | . 2 1 2 3 . 4 1 3 . 8 Max Kills in Single Turn 3 | 1 1 1 1 1 . 3 1 1 . 1 Gunslinging . | . . . . . . . . . . . Exploded . | . . . . . . . . . . . Melee . | . . . . . . . . . . . Uniques/NPCs Destroyed . | . . . . . . . . . . . Combat | -11 -10 -10 -10 -8 -8 -6 -6 -6 -6 -5 -------- Run | Yrd Mat Min Sub Rec Scr Fac Low Low Dat Pro Hostile Shots Fired 1093 | . 44 13 87 2 . 665 54 31 . 197 Missed 376 | . 7 5 25 . . 266 21 9 . 43 Hits 717 | . 37 8 62 2 . 399 33 22 . 154 Melee 9 | . . . . 1 . . . 8 . . Projectile 708 | . 37 8 62 1 . 399 33 14 . 154 AOE 2 | . . . . 1 . 1 . . . . Critical Strikes 22 | . . . 1 1 . 12 1 2 . 5 Part Disruptions 3 | . . . . . . 3 . . . . Damage Taken 6965 | . 197 73 607 43 . 3512 430 367 . 1736 Core 946 | . 15 7 37 25 . 429 65 32 . 336 Absorbed by Shields . | . . . . . . . . . . . Ignored by Resistances 4446 | . 137 45 341 25 . 2387 262 214 . 1035 Regen/Repaired (Parts) 588 | . . . . . . 588 . . . . Core Remaining (%) 83 | 100 . . . . 66 . . . . . Volleys Fired 610 | 10 28 10 207 25 . 263 15 21 . 31 Largest 2 | 2 2 2 2 1 . 2 2 2 . 2 Hottest 170 | 40 120 40 120 40 . 170 113 160 . 155 Shots Fired 1020 | 20 56 20 321 25 . 442 32 44 . 60 Gun 602 | 20 55 20 176 . . 218 25 43 . 45 Cannon 392 | . . . 120 25 . 224 7 1 . 15 Launcher . | . . . . . . . . . . . Special 26 | . 1 . 25 . . . . . . . Kinetic 447 | 20 55 20 204 . . 116 17 15 . . Thermal 557 | . 1 . 117 25 . 326 15 28 . 45 Explosive . | . . . . . . . . . . . Electromagnetic 16 | . . . . . . . . 1 . 15 Robot Hit Streak 37 | 15 11 11 30 20 . 31 12 32 . 37 Robot Miss Streak 3 | 1 3 3 2 1 . 3 1 1 . 1 Penetration Max 1 | . . . . . . . 1 1 . . Secondary Targets 5 | . . . 2 . . 1 . . . 2 Max Gunslinging Chain 1 | . . . 1 . . 1 . . . 1 Shots Hit Robots 686 | 19 39 14 113 22 . 363 24 39 . 53 Core Hits 294 | 6 13 7 35 8 . 183 6 17 . 19 Critical Kills 19 | . . . 1 1 . 13 2 1 . 1 Critical Parts Destroyed 8 | . . . . . . . 1 2 . 5 Critical Strikes 35 | . . . 2 1 . 17 5 3 . 7 Burn 1 | . . . . . . . . . . 1 Meltdown 9 | . . . 1 1 . 7 . . . . Destroy 20 | . . . 1 . . 6 4 3 . 6 Blast 5 | . . . . . . 4 1 . . . Melee Attacks 1 | . . . . . . 1 . . . . Impact 1 | . . . . . . 1 . . . . Slashing . | . . . . . . . . . . . Piercing . | . . . . . . . . . . . Sneak Attacks . | . . . . . . . . . . . Combat Hostiles . | . . . . . . . . . . . Follow-up Attacks . | . . . . . . . . . . . Damage Inflicted 19304 | 247 479 174 1887 1130 . 12379 722 1133 . 1153 Guns 9709 | 247 479 174 1233 . . 4995 467 1098 . 1016 Cannons 9254 | . . . 654 1130 . 7043 255 35 . 137 Explosions 337 | . . . . . . 337 . . . . Melee . | . . . . . . . . . . . Ramming 4 | . . . . . . 4 . . . . Kinetic 5966 | 247 479 174 1514 . . 2706 398 448 . . Thermal 13162 | . . . 373 1130 . 9669 324 650 . 1016 Explosive . | . . . . . . . . . . . Electromagnetic 172 | . . . . . . . . 35 . 137 Impact . | . . . . . . . . . . . Slashing . | . . . . . . . . . . . Piercing . | . . . . . . . . . . . Highest Corruption 6 | . . . . . . 6 1 1 1 4 Average Corruption 1 | . . . . . . 2 1 1 1 2 Corruption Purged 10 | . . . . . . 10 . . . . Corruption Blocked . | . . . . . . . . . . . Effects 60 | . . . . . . 14 22 22 . 2 Message Errors 13 | . . . . . . 6 3 4 . . Matter Fused 17 | . . . . . . 1 7 7 . 2 Heat Flow Errors 4 | . . . . . . 1 2 1 . . Energy Discharges 7 | . . . . . . 2 2 3 . . Parts Fused 2 | . . . . . . . 1 1 . . Data Loss (minor) 8 | . . . . . . 2 3 3 . . Data Loss (major) 4 | . . . . . . 2 1 1 . . Misfires 5 | . . . . . . . 3 2 . . Overload Shots . | . . . . . . . . . . . Overflow Damage 569 | . . . . 214 . 343 12 . . . Projectiles 532 | . . . . 214 . 306 12 . . . Explosions 37 | . . . . . . 37 . . . . Melee . | . . . . . . . . . . . Knockbacks 17 | . . . . . . 17 . . . . Impact . | . . . . . . . . . . . Kinetic 16 | . . . . . . 16 . . . . Secondary 1 | . . . . . . 1 . . . . Self-Inflicted Damage . | . . . . . . . . . . . Shots . | . . . . . . . . . . . Rammed 1 | . . . . . . 1 . . . . Targets Rammed 1 | . . . . . . 1 . . . . Kicked . | . . . . . . . . . . . Crushed . | . . . . . . . . . . . Highest Temperature 89 | 9 20 4 2 11 . 14 68 1 . 89 Average Temperature 27 | 5 10 3 2 11 . 9 68 1 . 53 Received Heat Transfer 2661 | . 18 66 84 . . 1563 111 126 . 693 Siege Activations . | . . . . . . . . . . . Martial Activations . | . . . . . . . . . . . Shielding Activations . | . . . . . . . . . . . Robots Disrupted . | . . . . . . . . . . . Combat Hostiles . | . . . . . . . . . . . Robots Corrupted 1 | . . . . . . 1 . . . . Combat Hostiles 1 | . . . . . . 1 . . . . Parts Fried 1 | . . . . . . 1 . . . . Impact Corruptions 1 | . . . . . . 1 . . . . Robots Melted 10 | . . . 1 1 . 7 . . . 1 Combat Hostiles 8 | . . . 1 1 . 5 . . . 1 Parts Melted 48 | . . . 2 1 . 40 2 1 . 2 Heat Transferred 13929 | . . . . . . 10821 481 999 . 1628 Parts Sabotaged . | . . . . . . . . . . . Parts Stolen . | . . . . . . . . . . . Parts Stripped . | . . . . . . . . . . . Power Chain Reactions . | . . . . . . . . . . . Alert | -11 -10 -10 -10 -8 -8 -6 -6 -6 -6 -5 ------- Run | Yrd Mat Min Sub Rec Scr Fac Low Low Dat Pro Maximum Alert Level . | . . . . . . . . . . . Low Security (%) 100 | 100 100 100 . 100 . 100 . . . . Level 1 . | . . . . . . . . . . . Level 2 . | . . . . . . . . . . . Level 3 . | . . . . . . . . . . . Level 4 . | . . . . . . . . . . . Level 5 . | . . . . . . . . . . . High Security . | . . . . . . . . . . . Max Security . | . . . . . . . . . . . Peak Influence 178 | 10 51 79 . 45 . 178 . . . . Initial 2 | . 2 . . . . . . . . . Average 8 | 1 4 4 . . . 12 . . . . Influence Increases 4587 | 25 183 159 135 173 . 3128 288 208 . 288 Destroy 0b10 Robot/C 2920 | . 120 120 60 100 . 1940 180 140 . 260 Destroy 0b10 Robot/NC 255 | 25 20 5 . 50 . 155 . . . . Destroy Leader 686 | . 38 30 . . . 548 30 20 . 20 Allied During Kill 249 | . . 4 . 6 . 120 63 48 . 8 Successful Hack 110 | . . . . 15 . 95 . . . . Disable Machine 100 | . 4 . . . . 96 . . . . Destroy Structure 87 | . 1 . . 2 . 84 . . . . Lose Combat Pursuer 180 | . . . 75 . . 90 15 . . . Influence Decreases 4488 | 20 188 159 135 173 . 3068 348 208 . 189 Entered New Map 35 | . 3 . . . . . 32 . . . Time Decay 4070 | 20 185 139 135 173 . 2848 306 188 . 76 Lost Part 192 | . . . . . . 112 10 . . 70 Lost Ally 191 | . . 20 . . . 108 . 20 . 43 Squads Dispatched 35 | . . . . . . 35 . . . . Investigation 7 | . . . . . . 7 . . . . Extermination 20 | . . . . . . 20 . . . . Reinforcement 8 | . . . . . . 8 . . . . Assault . | . . . . . . . . . . . Garrison . | . . . . . . . . . . . Intercept . | . . . . . . . . . . . Searches Triggered . | . . . . . . . . . . . Construction Impeded 1 | . . . . . . 1 . . . . Haulers Reinforced 4 | . . . . . . 4 . . . . Active Scanning Responses . | . . . . . . . . . . . Cargo Convoy Interrupts . | . . . . . . . . . . . Stealth | -11 -10 -10 -10 -8 -8 -6 -6 -6 -6 -5 --------- Run | Yrd Mat Min Sub Rec Scr Fac Low Low Dat Pro Distress Signals 1 | . . . . . . 1 . . . . Communications Jammed . | . . . . . . . . . . . Distress Signals . | . . . . . . . . . . . Times Spotted 192 | . 11 6 17 3 . 111 10 18 . 16 Peak Tracking Total 15 | . 3 2 3 2 . 5 3 5 . 15 Tactical Retreats 10 | . . . 2 . . 6 1 1 . . Traps | -11 -10 -10 -10 -8 -8 -6 -6 -6 -6 -5 ------- Run | Yrd Mat Min Sub Rec Scr Fac Low Low Dat Pro Traps Triggered 14 | . 4 . 1 . . 9 . . . . Indirectly . | . . . . . . . . . . . Trap Hack Attempts . | . . . . . . . . . . . Triggered . | . . . . . . . . . . . Disarmed . | . . . . . . . . . . . Reprogrammed . | . . . . . . . . . . . Reused . | . . . . . . . . . . . Traps Extracted . | . . . . . . . . . . . Installed . | . . . . . . . . . . . Triggered . | . . . . . . . . . . . Machines | -11 -10 -10 -10 -8 -8 -6 -6 -6 -6 -5 ---------- Run | Yrd Mat Min Sub Rec Scr Fac Low Low Dat Pro Machines Disabled 26 | . 1 . 1 . . 24 . . . . Max in Single Turn 6 | . 1 . 1 . . 6 . . . . Garrison Access 3 | . . . . . . 3 . . . . Machines Repaired . | . . . . . . . . . . . Machines Dismantled . | . . . . . . . . . . . Machines Sabotaged . | . . . . . . . . . . . Overloaded Fab Kills . | . . . . . . . . . . . Hacking | -11 -10 -10 -10 -8 -8 -6 -6 -6 -6 -5 --------- Run | Yrd Mat Min Sub Rec Scr Fac Low Low Dat Pro Machines Accessed 53 | . . . 4 10 . 34 . 1 4 . Terminals 21 | . . . . 6 . 15 . . . . Fabricators 6 | . . . . . . 6 . . . . Repair Stations 2 | . . . . . . 2 . . . . Recycling Units 8 | . . . . 4 . 4 . . . . Scanalyzers 4 | . . . . . . 4 . . . . Garrison Access 3 | . . . . . . 3 . . . . Total Hacks 186 | . . . 8 44 . 108 . 1 25 . Successful 159 | . . . 8 33 . 92 . 1 25 . Failed 27 | . . . . 11 . 16 . . . . Catastrophic . | . . . . . . . . . . . Database Lockouts . | . . . . . . . . . . . Manual 57 | . . . . 32 . 25 . . . . Terminals 67 | . . . . 33 . 34 . . . . Fabricators 43 | . . . . . . 43 . . . . Repair Stations 8 | . . . . . . 8 . . . . Recycling Units 15 | . . . . 11 . 4 . . . . Scanalyzers 16 | . . . . . . 16 . . . . Garrison Access 3 | . . . . . . 3 . . . . Terminal Hacks 62 | . . . 8 18 . 10 . 1 25 . Record 16 | . . . 5 . . . . . 11 . Part Schematic 17 | . . . . 5 . 4 . . 8 . Robot Schematic 6 | . . . . . . 3 . . 3 . Prototype ID Bank 16 | . . . . 13 . . . . 3 . Open Door 2 | . . . 1 . . . . 1 . . Machine Index 1 | . . . . . . 1 . . . . Maintenance Status 1 | . . . . . . 1 . . . . Hauler Manifests 1 | . . . . . . 1 . . . . Proto ID Catalog 1 | . . . 1 . . . . . . . Release Object 1 | . . . 1 . . . . . . . Fabricator Hacks 33 | . . . . . . 33 . . . . Load Schematic 17 | . . . . . . 17 . . . . Build 16 | . . . . . . 16 . . . . Repair Station Hacks 8 | . . . . . . 8 . . . . Scan Component 4 | . . . . . . 4 . . . . Repair 4 | . . . . . . 4 . . . . Recycling Unit Hacks 9 | . . . . 5 . 4 . . . . Retrieve Components 9 | . . . . 5 . 4 . . . . Scanalyzer 14 | . . . . . . 14 . . . . Insert Component 7 | . . . . . . 7 . . . . Analyze 7 | . . . . . . 7 . . . . Garrison Access Hacks 3 | . . . . . . 3 . . . . Seal Access 3 | . . . . . . 3 . . . . Unauthorized Hacks 29 | . . . . 10 . 19 . . . . Terminals 24 | . . . . 6 . 18 . . . . Assimilate 3 | . . . . . . 3 . . . . Botnet 21 | . . . . 6 . 15 . . . . Fabricators 1 | . . . . . . 1 . . . . Fabnet 1 | . . . . . . 1 . . . . Repair Stations . | . . . . . . . . . . . Recycling Units 4 | . . . . 4 . . . . . . Reject 4 | . . . . 4 . . . . . . Scanalyzers . | . . . . . . . . . . . Garrison Access . | . . . . . . . . . . . Data Cores Recovered 2 | . . . . . . 2 . . . . Used 2 | . . . . . . 2 . . . . Hacking Detections 29 | . . . . 7 . 22 . . . . Full Trace Events 7 | . . . . 1 . 6 . . . . Feedback Events 4 | . . . . . . 4 . . . . Corruption 2 | . . . . . . 2 . . . . Hackware Fried 2 | . . . . . . 2 . . . . Feedback Blocked . | . . . . . . . . . . . Robot Schematics Acquired 6 | . . . . . . 3 . . 3 . Robots Built 32 | . . . . . . 32 . . . . Authchips . | . . . . . . . . . . . Time 1481 | . . . . . . 1481 . . . . Total Robot Build Rating 154 | . . . . . . 154 . . . . Part Schematics Acquired 22 | . . . . 5 . 9 . . 8 . Parts Built 2 | . . . . . . 2 . . . . Authchips . | . . . . . . . . . . . Time 78 | . . . . . . 78 . . . . Total Part Build Rating 14 | . . . . . . 14 . . . . Part Studies Acquired . | . . . . . . . . . . . Parts Repaired 3 | . . . . . . 3 . . . . Time 108 | . . . . . . 108 . . . . Parts Recycled . | . . . . . . . . . . . Recycled Matter . | . . . . . . . . . . . Retrieved Matter . | . . . . . . . . . . . Retrieved Components 34 | . . . . 10 . 24 . . . . Parts Scanalyzed 6 | . . . . . . 6 . . . . Part Schematics Acquired 5 | . . . . . . 5 . . . . Parts Damaged 1 | . . . . . . 1 . . . . Bothacking | -11 -10 -10 -10 -8 -8 -6 -6 -6 -6 -5 ------------ Run | Yrd Mat Min Sub Rec Scr Fac Low Low Dat Pro Used RIF Installer . | . . . . . . . . . . . Robots Hacked . | . . . . . . . . . . . Non-combat . | . . . . . . . . . . . Combat . | . . . . . . . . . . . Robot Hacks Applied . | . . . . . . . . . . . Relay Couplers Released . | . . . . . . . . . . . Fabnet Peak Effective % . | . . . . . . . . . . . Robots Rewired 10 | . . . . 8 . . . 2 . . Allies Hacked 2 | . . . . . . . . . . 2 Hacks Repelled 1 | . . . . . . . . . . 1 Allies | -11 -10 -10 -10 -8 -8 -6 -6 -6 -6 -5 -------- Run | Yrd Mat Min Sub Rec Scr Fac Low Low Dat Pro Total Allies 46 | . . 3 . 8 . 32 . 2 . 1 Largest Group 18 | . . 3 . 8 8 18 15 14 6 6 Highest-Rated Group 612 | . . 40 . 129 129 612 481 452 176 176 Highest-Rated Ally 96 | . . 16 . 34 34 41 41 41 41 96 Total Orders . | . . . . . . . . . . . Ally Attacks 354 | . . 26 . 2 . 141 54 109 . 22 Total Damage 8259 | . . 258 . 47 . 3813 1192 2152 . 797 Kills 63 | . . 5 . 1 . 30 6 16 . 5 Allies Corrupted . | . . . . . . . . . . . Allies Melted . | . . . . . . . . . . . Intel | -11 -10 -10 -10 -8 -8 -6 -6 -6 -6 -5 ------- Run | Yrd Mat Min Sub Rec Scr Fac Low Low Dat Pro Active Infowar (turns) 11112 | . 816 1290 6253 . . 506 . 1948 143 156 Sensors 748 | . . . 242 . . 506 . . . . Terrain 4100 | . 815 1290 1995 . . . . . . . Structural 8182 | . 816 1290 6076 . . . . . . . Decoding 2247 | . . . . . . . . 1948 143 156 Robot Analysis Total . | . . . . . . . . . . . Derelict Logs Recovered 8 | . . 1 2 . . . 2 3 . . Drone Launches . | . . . . . . . . . . . Drone Recoveries . | . . . . . . . . . . . Exploration | -11 -10 -10 -10 -8 -8 -6 -6 -6 -6 -5 ------------- Run | Yrd Mat Min Sub Rec Scr Fac Low Low Dat Pro Turns Passed 37120 | 116 1050 1290 9881 4965 2324 12200 2356 2639 143 156 Spaces Moved 14389 | 54 574 742 2761 1693 956 4885 1253 1361 80 30 Core 32 | 25 7 . . . . . . . . . Treads 14357 | 29 567 742 2761 1693 956 4885 1253 1361 80 30 Legs . | . . . . . . . . . . . Wheels . | . . . . . . . . . . . Hover . | . . . . . . . . . . . Flight . | . . . . . . . . . . . Fastest Speed 50 | 50 160 160 160 165 225 156 180 180 180 180 Average Speed 223 | 123 161 160 310 274 238 195 180 180 180 180 Slowest Speed 1160 | 160 350 160 1160 1160 250 400 180 180 180 180 Overloaded Moves . | . . . . . . . . . . . Propulsion Burnouts . | . . . . . . . . . . . Robots Hopped . | . . . . . . . . . . . Potential Cave-ins 3 | . . . 3 . . . . . . . Cave-ins Triggered . | . . . . . . . . . . . Exploration Rate (%) 73 | 4 98 99 96 99 49 95 98 98 69 7 Regions Visited 10 Branch Regions 8 Pre-discovered Areas 7 | . . 2 2 . 1 . 1 . 1 . Known Exits Taken 10 | 1 1 1 1 1 1 1 1 1 1 . Unknown Exits Taken . | . . . . . . . . . . . Scrap Searched 13 | . . 1 4 . 2 . 4 2 . . Spaces Dug 57 | . . . 53 2 . 2 . . . . Terrain Destroyed 144 | . . . 89 2 . 48 4 1 . . Melee 1 | . . . . . . 1 . . . . Projectile 123 | . . . 89 2 . 27 4 1 . . AOE 20 | . . . . . . 20 . . . . Terrain Rammed . | . . . . . . . . . . . Walls Destroyed . | . . . . . . . . . . . Machines Disabled . | . . . . . . . . . . . Actions | -11 -10 -10 -10 -8 -8 -6 -6 -6 -6 -5 --------- Run | Yrd Mat Min Sub Rec Scr Fac Low Low Dat Pro Total 18384 | 82 639 827 3719 1998 1011 7118 1327 1510 79 74 Wait 2951 | 2 13 64 689 180 38 1804 50 102 . 9 Move 14379 | 53 573 741 2760 1692 955 4884 1252 1360 79 30 Hop . | . . . . . . . . . . . Pick Up 117 | 9 14 7 16 20 7 37 3 4 . . Fast Attach 37 | 3 . . 1 2 . 28 . 3 . . Attach 49 | 4 9 . 6 5 . 20 2 1 . 2 Detach 10 | . . . 4 1 . 5 . . . . Swap 61 | . 2 2 17 7 3 24 2 3 . 1 Drop 111 | 1 . 3 19 19 8 51 3 6 . 1 Fire 610 | 10 28 10 207 25 . 263 15 21 . 31 Melee 1 | . . . . . . 1 . . . . Ram . | . . . . . . . . . . . Kick . | . . . . . . . . . . . Crush 1 | . . . . . . 1 . . . . Escape Stasis . | . . . . . . . . . . . Rewire 57 | . . . . 47 . . . 10 . . Trap . | . . . . . . . . . . . Miscellaneous . | . . . . . . . . . . . Route ------- -11/Scrapyard -10/Materials (discovered 5 exits: *Mat x3 / *Min x2) -10/Mines (discovered 4 exits: *Mat x2 / *Exi / *Sub) -10/Subcaves (discovered 4 exits: *Mat x2 / *Rec / *Scr) -8/Recycling (discovered 2 exits: *Fac / *Scr) -8/Scraptown -6/Factory (discovered 6 exits: *Fac x4 / *Low x2) -6/Lower Caves -6/Lower Caves (discovered 2 exits: *Fac / *Dat) -6/Data Miner -5/Proximity Caves History --------- Turn | Location | Event 11 | -11/Scrapyard | Identified exit to Materials 11 | -11/Scrapyard | Discovered exit to Materials (range 15) 117 | -11/Scrapyard | Entered Materials 117 | -10/Materials | Evolved 1 slot: Utility x1 239 | -10/Materials | Identified exit to Mines 239 | -10/Materials | Discovered exit to Mines (range 4) 308 | -10/Materials | Build established: Hacker-Mutant 331 | -10/Materials | Identified exit to Materials 331 | -10/Materials | Discovered exit to Materials (range 7) 538 | -10/Materials | Discovered exit to Mines (range 16) 726 | -10/Materials | Discovered exit to Materials (range 16) 1061 | -10/Materials | Discovered exit to Materials (range 15) 1167 | -10/Materials | Entered Mines 1228 | -10/Mines | Discovered exit to Materials (range 14) 1238 | -10/Mines | Assisted by bots powering up and referring to "LRC-V3" 1350 | -10/Mines | Deemed a non-threat by the Exiles lab entrance 1350 | -10/Mines | Identified exit to Exiles 1350 | -10/Mines | Discovered exit to Exiles (range 5) 1505 | -10/Mines | Identified exit to Subcaves 1505 | -10/Mines | Discovered exit to Subcaves (range 16) 1547 | -10/Mines | Discovered exit to Materials (range 4) 1776 | -10/Mines | Lost 3 allies 2069 | -10/Mines | Learned location of Storage (-8) 2457 | -10/Mines | Entered Subcaves 2458 | -10/Subcaves | Approached by a straggling Scientist 2615 | -10/Subcaves | Visited 4L-MR0's lab 2665 | -10/Subcaves | Found Powered Cannon 2890 | -10/Subcaves | Identified exit to Materials 2890 | -10/Subcaves | Discovered exit to Materials (range 14) 3320 | -10/Subcaves | Learned location of Zion (-7) 3320 | -10/Subcaves | Met a Zionite searching for "candidates" 3370 | -10/Subcaves | Ambushed by Subdwellers from Twisted Machinery 3559 | -10/Subcaves | Visited Clippyterm 3564 | -10/Subcaves | Learned Research machine intel 3781 | -10/Subcaves | Learned 2 Materials zone layouts 3974 | -10/Subcaves | Scientist uncovered a shortcut to Scraptown 4080 | -10/Subcaves | Learned location of Mines (-9) 4135 | -10/Subcaves | Shifting Twisted Machinery released Battle Rifle 4160 | -10/Subcaves | A swath of the cavern ceiling suddenly collapsed 4357 | -10/Subcaves | A swath of the cavern ceiling suddenly collapsed 4622 | -10/Subcaves | Shifting Twisted Machinery released Spk. Treads 4701 | -10/Subcaves | Shifting Twisted Machinery released Sub. Power Source 4832 | -10/Subcaves | Identified exit to Recycling 4832 | -10/Subcaves | Discovered exit to Recycling (range 12) 5425 | -10/Subcaves | Discovered exit to Materials (range 8) 6205 | -10/Subcaves | Shifting Twisted Machinery released Flamer 6410 | -10/Subcaves | Shifting Twisted Machinery released Battle Cannon 7618 | -10/Subcaves | Attached Powered Cannon, gained temporary slot: Power 8546 | -10/Subcaves | Ambushed by Subdweller buried in earth 8581 | -10/Subcaves | Ambushed by Subdweller buried in earth 8586 | -10/Subcaves | Ambushed by Subdweller buried in earth 8670 | -10/Subcaves | Ambushed by Subdweller buried in earth 8705 | -10/Subcaves | Ambushed by Subdweller buried in earth 8958 | -10/Subcaves | Found SUBCON Basin 9265 | -10/Subcaves | Build established: Hauler-Mutant 12338 | -10/Subcaves | Entered Recycling 13007 | -8/Recycling | Scanned before Scraplab entrance 13099 | -8/Recycling | Entered Scraplab 13654 | -8/Recycling | Build established: Commander-Mutant 14104 | -8/Recycling | Identified exit to Factory 14104 | -8/Recycling | Discovered exit to Factory (range 16) 17236 | -8/Recycling | Identified exit to Scraptown 17236 | -8/Recycling | Discovered exit to Scraptown (range 2) 17303 | -8/Recycling | Entered Scraptown 17303 | -8/Scraptown | Accompanied by 8 allies 17908 | -8/Scraptown | Discovered exit to Factory (range 11) 18052 | -8/Scraptown | Visited Cyclists 18102 | -8/Scraptown | Visited Red Mages 18120 | -8/Scraptown | Visited Supply Room 18192 | -8/Scraptown | Visited Science Testing Area 18295 | -8/Scraptown | Visited IN-MT5's Study 18310 | -8/Scraptown | Visited Comm Corps 19627 | -8/Scraptown | Entered Factory 19627 | -6/Factory | Accompanied by 8 allies 19627 | -6/Factory | Evolved 8 slots: Power x1, Propulsion x2, Utility x5 19890 | -6/Factory | Spotted B-75 Beast 19927 | -6/Factory | Build established: Wizard-Mutant 20011 | -6/Factory | Identified exit to Factory 20011 | -6/Factory | Discovered exit to Factory (range 15) 20206 | -6/Factory | Allies destroyed B-75 Beast 20451 | -6/Factory | Lost 3 allies 21036 | -6/Factory | Discovered exit to Factory (range 16) 21482 | -6/Factory | Build established: Hacker-Mutant 22528 | -6/Factory | Discovered exit to Factory (range 16) 23090 | -6/Factory | Repaired Hcp. Storage Unit 23694 | -6/Factory | Lost 6 parts (3n3u) 23869 | -6/Factory | Discovered exit to Factory (range 15) 24410 | -6/Factory | Repaired Broken Multitool 24411 | -6/Factory | Hacking Suite fried by hacking feedback 24433 | -6/Factory | Repaired Med. Treads 24475 | -6/Factory | Identified exit to Lower Caves 24475 | -6/Factory | Discovered exit to Lower Caves (range 8) 26023 | -6/Factory | Discovered exit to Lower Caves (range 15) 27965 | -6/Factory | Found Prototype Processor 28972 | -6/Factory | Core integrity fell below 50% 29043 | -6/Factory | Fabricated H-66 Slayer (x2) 29177 | -6/Factory | Fabricated Y-54 Guardian (x2) 29329 | -6/Factory | Fabricated G-50 Soldier (x3) 29481 | -6/Factory | Fabricated H-66 Slayer (x2) 29615 | -6/Factory | Fabricated Y-54 Guardian (x2) 29767 | -6/Factory | Fabricated G-50 Soldier (x3) 29909 | -6/Factory | Build established: Commander-Mutant 30134 | -6/Factory | Fabricated H-66 Slayer (x2) 30201 | -6/Factory | Fabricated Y-54 Guardian (x2) 30267 | -6/Factory | Fabricated Hvy. Siege Treads (x1) 30312 | -6/Factory | Fabricated Hvy. Siege Treads (x1) 30558 | -6/Factory | Lost 8 allies 30593 | -6/Factory | Lost 5 allies 30831 | -6/Factory | Build established: Hacker-Mutant 31329 | -6/Factory | Fabricated G-50 Soldier (x3) 31379 | -6/Factory | Fabricated G-50 Soldier (x3) 31379 | -6/Factory | Imp. System Shield fried by hacking feedback 31426 | -6/Factory | Lost 3 allies 31506 | -6/Factory | Fabricated H-66 Slayer (x2) 31582 | -6/Factory | Fabricated G-50 Soldier (x3) 31658 | -6/Factory | Fabricated G-50 Soldier (x3) 31805 | -6/Factory | Build established: Commander-Mutant 31827 | -6/Factory | Entered Lower Caves 31827 | -6/Lower Caves | Accompanied by 15 allies 31882 | -6/Lower Caves | Spotted B-75 Beast 31901 | -6/Lower Caves | Allies destroyed B-75 Beast 32061 | -6/Lower Caves | Attracted the attention of an 0b10 checkpoint 32130 | -6/Lower Caves | Encountered a Warlord checkpoint 32456 | -6/Lower Caves | Learned Factory security intel 32462 | -6/Lower Caves | Identified exit to Lower Caves 32462 | -6/Lower Caves | Discovered exit to Lower Caves (range 5) 34183 | -6/Lower Caves | Entered another Lower Caves area 34183 | -6/Lower Caves | Accompanied by 14 allies 34529 | -6/Lower Caves | Learned 8 Factory zone layouts 34752 | -6/Lower Caves | Identified exit to Data Miner 34752 | -6/Lower Caves | Discovered exit to Data Miner (range 4) 34753 | -6/Lower Caves | Encountered a Warlord checkpoint 35101 | -6/Lower Caves | Ambushed by wild Derelicts 35699 | -6/Lower Caves | Attacked by a faux Warlord 35746 | -6/Lower Caves | Lost 3 allies 35784 | -6/Lower Caves | Learned 4 Factory zone layouts 35800 | -6/Lower Caves | Learned Factory stockpile data 36254 | -6/Lower Caves | Discovered exit to Factory (range 16) 36357 | -6/Lower Caves | Build established: Hacker-Mutant 36822 | -6/Lower Caves | Entered Data Miner 36822 | -6/Data Miner | Accompanied by 6 allies 36822 | -6/Data Miner | Identified exit to Proximity Caves 36822 | -6/Data Miner | Discovered exit to Proximity Caves (range 6) 36857 | -6/Data Miner | Met Data Miner 36887 | -6/Data Miner | Learned location of Section 7 (-2) 36887 | -6/Data Miner | Acquired the access code to Warlord's prototype stash 36918 | -6/Data Miner | Received God Mode back door access code from Data Miner 36965 | -6/Data Miner | Entered Proximity Caves 36965 | -5/Proximity Caves | Accompanied by 6 allies 37033 | -5/Proximity Caves | Attracted the attention of an 0b10 base 37060 | -5/Proximity Caves | Escorted by Enhanced Grunt 37090 | -5/Proximity Caves | Core integrity fell below 20% 37102 | -5/Proximity Caves | Lost 5 allies 37121 | -5/Proximity Caves | Destroyed by G-50 Soldier with Heavy Laser Last Messages --------------- 37088_ Hvy. Siege Treads destroyed. 37090_ Critical hit (Burn: +37). 37092_ G-50 Soldier destroyed. 37092_ Switching to secondary target: G-50 Soldier. 37095_ Critical hit (Burn: +37). 37097_ System corrupted: Matter fused (-10). 37097_ Force Rifle destroyed. 37103_ G-50 Soldier heat spikes uncontrollably. 37103_ G-50 Soldier overheating. 37104_ G-50 Soldier heat damages Hvy. Laser. 37104_ G-50 Soldier overheating. 37104_ G-50 Soldier destroyed. 37108_ G-50 Soldier suffers critical hit (Burn). 37108_ G-50 Soldier critical meltdown. 37108_ Adv. Heat Sink melted. 37114_ Lgt. Angular Momentum Engine melted. 37114_ G-50 Soldier destroyed. 37117_ Cold Fusion Reactor destroyed. 37117_ Critical hit (Burn: +37). Map ----- +----------------------------------------------------+ | ?????????????????????????????????????????????????? | | ?????????????????????????????????????????????????? | | ?????????????????????????????????????????????????? | | ?????????????????????????????????????????????????? | | ?????????????????????????????????????????????????? | | ?????????????????????????????????????????????????? | | ?????????????????????????????????????????????????? | | ?????????????????????????????????????????????????? | | ?????????????????????????????????????????????????? | | ?????????????????????????????????????????????????? | | ?????????????????????????????????????????????????? | | ?????????????????????????????????????????????????? | | ?????????????????????????????????????????????????? | | ?????????????????????????????????????????????????? | | ????????????????????????####?????????????????????? | | ???????????????????????? #?????????????????????? | | ???????????????????????? #?????????????????????? | | ????????????????????????# #?????????????????????? | | ????????????????????????# #?????????????????????? | | ????????????????????????# #?????????????????????? | | ??????????? ?????????# #?????????????????????? | | ??????????? ####### #?????????????????????? | | ??????????" $ [%[%*#?????????????????????? | | ??????????" *[+=g#?????????????????????? | | ???????????? " %+%=#?????????????????????? | | ?????????????? "" #@%#????###????#####?????? | | ????????????? " ##?#%====#?## ##???# ####??? | | ????????????? ""?????!*!%%*!*## ##??# #??? | | ????????????????????? =[[%*%=;# #???# #??? | | ???????????????????? !!/=%%! ##??# #???? | | ?????????????????? %%|! ##?# ##???? | | ????????????????? # !%] # ### ##????? | | ????????????????#++#####; ;## ## #?????? | | ??????????????????????? ### [%*" #?????? | | ??????????????????????? ## =%% #?????? | | ??????????????????????#### ## #???? | | ????????????????????????# ###### #???? | | ????????????????????????## ###???# ##???? | | ?????????????????????????### ##?????########????? | | ???????????????????????????# ???????????????????? | | ??????????????????????????# ???????????????????? | | ??????????????????????????# ???????????????????? | | ??????????????????????????# ???????????????????? | | ??????????????????????????# ???????????????????? | | ??????????????????????????# ???????????????????? | | ??????????????????????????# ???????????????????? | | ???????????????????????????# ????????????????????? | | ?????????????????????????????????????????????????? | | ?????????????????????????????????????????????????? | | ?????????????????????????????????????????????????? | +----------------------------------------------------+ Best States ------------- Heat Dissipation 113 Energy Generation 40 Energy Capacity 690 Matter Stores 300 Matter Capacity 300 Sight Range 16 Robot Scan Range 15 Terrain Scan Range 16 Terrain Scan Density 10 Base Temperature (-) 100 Corruption Containment 8 Armor Coverage 225 Resistance: KI 35 Resistance: TH 35 Resistance: EX 35 Resistance: EM 60 Resistance: I 35 Resistance: S 35 Resistance: P 35 Evasion (%) 50 Recoil Reduction 4 Offensive Hacking 60 Defensive Hacking 34 Item Schematics ----------------- Hvy. Plasma Cannon | -8/Recycling | Hacked Imp. Power Shielding | -8/Recycling | Hacked Imp. Terrain Scan Processor | -8/Recycling | Hacked Gauss Rifle | -8/Recycling | Hacked Reaction Control System | -8/Recycling | Hacked Hvy. Phase Cannon | -6/Factory | Hacked Adv. Hardlight Generator | -6/Factory | Hacked Matter Compressor | -6/Factory | Hacked Hvy. Siege Treads | -6/Factory | Hacked Hacking Suite | -6/Factory | Scanalyzed System Shield | -6/Factory | Scanalyzed Imp. System Shield | -6/Factory | Scanalyzed Imp. System Restoration Module | -6/Factory | Scanalyzed Multitool | -6/Factory | Scanalyzed Combat Drone Bay | -6/Data Miner | Free Lgt. Regenerative Plating | -6/Data Miner | Free Cld. Gravmag System | -6/Data Miner | Free Imp. Matter Compressor | -6/Data Miner | Free Enh. Coil Gun | -6/Data Miner | Free Adv. Cryofiber Web | -6/Data Miner | Free Hardcell Cannon | -6/Data Miner | Free Adv. Surge Thruster | -6/Data Miner | Free Robot Schematics ------------------ H-66 Slayer | -6/Factory | Hacked G-50 Soldier | -6/Factory | Hacked Y-54 Guardian | -6/Factory | Hacked B-60 Warrior | -6/Data Miner | Free B-48 Gladiator | -6/Data Miner | Free A-15 Conveyor | -6/Data Miner | Free Fabricated ------------ H-66 Slayer | x2 | -6/Factory Y-54 Guardian | x2 | -6/Factory G-50 Soldier | x3 | -6/Factory H-66 Slayer | x2 | -6/Factory Y-54 Guardian | x2 | -6/Factory G-50 Soldier | x3 | -6/Factory H-66 Slayer | x2 | -6/Factory Y-54 Guardian | x2 | -6/Factory Hvy. Siege Treads | x1 | -6/Factory Hvy. Siege Treads | x1 | -6/Factory G-50 Soldier | x3 | -6/Factory G-50 Soldier | x3 | -6/Factory H-66 Slayer | x2 | -6/Factory G-50 Soldier | x3 | -6/Factory G-50 Soldier | x3 | -6/Factory Repaired ---------- Hcp. Storage Unit | 18% | -6/Factory Multitool | 99% | -6/Factory | Broken Med. Treads | 1% | -6/Factory Studied --------- None Alien Tech Used ----------------- None Achievements -------------- War Machine Challenges ------------ None Game ------ Seed GrapheneLaserThruster Manual? 0 Play Time 02:01:54 Cumulative 280.8 hours Start 2026.01.15 @ 10:09:33 End 2026.01.15 @ 12:32:19 Sessions 1 Manual Loads 0 Difficulty Explorer Special Mode None Game No. 438 Rogue 0 Adventurer 0 Explorer 438 Win Type - Total 0 Types 0/0/0/0/0/0/0/0/0/0 Lore% 74 Gallery% 69 Achievement% 55 Wizard Run 0 Options --------- Layout 1 ASCII 0 Keyboard 0 Movement Mouse Keybinds 1 Fullscreen 1 Font 24/Smallcaps Map View 50x35 Zoom Use 0% Tactical HUD 1 Map Filters NONE Filters NONE Steam 1 RUN: 8f59351d-a64f-47da-a6c4-487b17a9814e